Cogmind - Beta 16 @@@ ROGUE MODE // 2025.12.17 @ 01:37:53 Player: sercli123 Result: Destroyed by D-53 Grenadier with Mini Grenade Launcher Performance ------------- Evolutions (0) 0 Regions Visited (2) 400 Robots Destroyed (10) 50 Value Destroyed (159) 159 Prototype IDs (0) 0 Alien Tech Used (0) 0 Bonus (0) 0 TOTAL SCORE: 609 Bonus ------- None Cogmind --------- Core Integrity 0/250 Matter 300/300 Energy 100/100 System Corruption 9% Temperature Cool (77) Movement Core (100) Ox1 Location -10/Mines Parts ------- > --- POWER (1) -------- (None) > --- PROPULSION (2) --- (None) > --- UTILITY (2) ------ Small Storage Unit Visual Processing Unit > --- WEAPON (2) ------- (None) > --- INVENTORY (8) ---- Light Ion Engine Flight Unit Flight Unit Reaction Control System Improved Light Cannon Grenade Launcher Peak State ------------ > --- POWER ------------ Ion Engine > --- PROPULSION ------- Light Treads Compact Wheel > --- UTILITY ---------- Small Storage Unit Visual Processing Unit > --- WEAPON ----------- Medium Laser Light Assault Rifle > --- INVENTORY -------- Light Ion Engine Light Ion Engine Flight Unit Flight Unit Targeting Computer Improved Light Cannon Improved Light Cannon Grenade Launcher [Rating: 9] Favorites ----------- Power Ion Engine Engine Ion Engine Propulsion Compact Wheel Treads Light Treads Wheel Compact Wheel Flight Unit Flight Unit Utility Small Storage Unit Storage Small Storage Unit Processor Visual Processing Unit Weapon Light Assault Rifle Energy Gun Medium Laser Ballistic Gun Light Assault Rifle Build | -11 -10 -10 ------- Run | Yrd Mat Min Slots Evolved . | . . . Power . | . . . Propulsion . | . . . Utility . | . . . Weapon . | . . . Parts Attached 10 | 6 2 2 Power 2 | 1 1 . Engine 2 | 1 1 . Core . | . . . Reactor . | . . . Propulsion 4 | 2 . 2 Treads 1 | 1 . . Leg . | . . . Wheel 1 | 1 . . Hover . | . . . Flight 2 | . . 2 Utility 2 | 1 1 . Device . | . . . Storage 1 | 1 . . Processor 1 | . 1 . Hackware . | . . . Protection . | . . . Artifact . | . . . Weapon 2 | 2 . . Energy Gun 1 | 1 . . Energy Cannon . | . . . Ballistic Gun 1 | 1 . . Ballistic Cannon . | . . . Launcher . | . . . Special Weapon . | . . . Impact Weapon . | . . . Slashing Weapon . | . . . Piercing Weapon . | . . . Special Melee Weapon . | . . . Unidentified Prototypes . | . . . Parts Lost 7 | . . 7 Power 1 | . . 1 Propulsion 4 | . . 4 Utility . | . . . Weapon 2 | . . 2 Highest Loss Streak 5 | . . 5 To Critical Strikes . | . . . Average Backups 5 | . 4 7 Power 1 | . 1 1 Propulsion 1 | . . 3 Utility . | . . 1 Weapon 1 | . 1 2 Tool/Special . | . . . Unused Backups 8 | . 1 7 Power 1 | . . 1 Propulsion 2 | . . 2 Utility 2 | . . 2 Weapon 3 | . 1 2 Tool/Special . | . . . Average Slot Usage (%) 94 | . 92 97 Engine 13 | . 14 13 Treads 11 | . 14 8 Wheel 11 | . 14 8 Flight 4 | . . 9 Storage 14 | . 14 14 Processor 10 | . 6 14 Energy Gun 14 | . 14 14 Ballistic Gun 14 | . 14 14 Peak Build Rating 9 | 6 9 9 Average Rating 7 | 4 7 8 On Entrance 4 | . 6 8 Avg Prop Armor Cover (%) 14 | 17 14 14 Naked Turns . | . . . Heaviest Build 13 | 11 13 13 Greatest Support 16 | 16 16 16 Greatest Overweight (x) 3 | . . 3 Average Overweight (x) . | . . . Largest Inventory Capacity 8 | 8 8 8 Average Capacity 7 | 6 8 8 Most Carried 8 | 2 8 8 Average Carried 5 | . 3 7 Final Capacity 8 | 8 8 8 Final Carried 8 | 1 8 6 Class Distribution -------------------- 100% | Mutant Dominant Class ---------------- Mutant | -10/Materials Mutant | -10/Mines Resources | -11 -10 -10 ----------- Run | Yrd Mat Min Matter Collected 303 | 249 54 . Remotely . | . . . Salvage Created 266 | . 266 . Parts 19 | . 19 . Haulers Intercepted 1 | . 1 . Recyclers Shooed . | . . . Parts Field Recycled . | . . . Retrieved Matter . | . . . Parts Self-Destructed . | . . . Prevented . | . . . Parts Restored . | . . . Kills | -11 -10 -10 ------- Run | Yrd Mat Min Combat Hostiles Destroyed 8 | . 8 . Guns 8 | . 8 . Classes Destroyed 4 | . 4 . Hauler 1 | . 1 . Watcher 1 | . 1 . Swarmer 6 | . 6 . Grunt 2 | . 2 . Best Kill Streak 7 | . 7 . Combat Bots Only 6 | . 6 . Max Kills in Single Turn 2 | . 2 . Gunslinging 1 | . 1 . Exploded . | . . . Melee . | . . . Uniques/NPCs Destroyed . | . . . Combat | -11 -10 -10 -------- Run | Yrd Mat Min Hostile Shots Fired 62 | . 50 12 Missed 20 | . 17 3 Hits 42 | . 33 9 Melee 1 | . . 1 Projectile 41 | . 33 8 AOE 10 | . . 10 Damage Taken 756 | . 334 422 Core 273 | . 101 172 Absorbed by Shields . | . . . Core Remaining (%) 100 | 100 . . Volleys Fired 32 | . 27 5 Largest 2 | . 2 2 Hottest 70 | . 70 70 Shots Fired 64 | . 52 12 Gun 64 | . 52 12 Cannon . | . . . Launcher . | . . . Special . | . . . Kinetic 32 | . 27 5 Thermal 32 | . 25 7 Explosive . | . . . Electromagnetic . | . . . Robot Hit Streak 5 | . 5 4 Robot Miss Streak 6 | . 2 6 Penetration Max . | . . . Secondary Targets 3 | . 3 . Max Gunslinging Chain 1 | . 1 . Shots Hit Robots 34 | . 30 4 Core Hits 18 | . 17 1 Critical Kills . | . . . Critical Parts Destroyed . | . . . Critical Strikes 2 | . 1 1 Burn 2 | . 1 1 Melee Attacks . | . . . Impact . | . . . Slashing . | . . . Piercing . | . . . Sneak Attacks . | . . . Combat Hostiles . | . . . Follow-up Attacks . | . . . Damage Inflicted 359 | . 308 51 Guns 359 | . 308 51 Cannons . | . . . Explosions . | . . . Melee . | . . . Ramming . | . . . Kinetic 174 | . 147 27 Thermal 185 | . 161 24 Explosive . | . . . Electromagnetic . | . . . Impact . | . . . Slashing . | . . . Piercing . | . . . Highest Corruption 9 | . . 9 Average Corruption 9 | . . 9 Corruption Purged . | . . . Corruption Blocked . | . . . Effects 5 | . . 5 Heat Flow Errors 1 | . . 1 Misfires 3 | . . 3 Weapon Failures 1 | . . 1 Overload Shots . | . . . Overflow Damage . | . . . Projectiles . | . . . Explosions . | . . . Melee . | . . . Knockbacks . | . . . Impact . | . . . Kinetic . | . . . Secondary . | . . . Self-Inflicted Damage . | . . . Shots . | . . . Rammed . | . . . Targets Rammed . | . . . Kicked . | . . . Crushed . | . . . Highest Temperature 181 | . 181 107 Average Temperature 57 | . 59 48 Received Heat Transfer 102 | . 102 . Siege Activations . | . . . Martial Activations . | . . . Shielding Activations . | . . . Robots Disrupted . | . . . Combat Hostiles . | . . . Robots Corrupted . | . . . Combat Hostiles . | . . . Parts Fried . | . . . Impact Corruptions . | . . . Robots Melted . | . . . Combat Hostiles . | . . . Parts Melted 2 | . 2 . Heat Transferred 703 | . 555 148 Parts Sabotaged . | . . . Parts Stolen . | . . . Parts Stripped . | . . . Power Chain Reactions . | . . . Alert | -11 -10 -10 ------- Run | Yrd Mat Min Maximum Alert Level . | . . . Low Security (%) 100 | 100 100 100 Level 1 . | . . . Level 2 . | . . . Level 3 . | . . . Level 4 . | . . . Level 5 . | . . . High Security . | . . . Max Security . | . . . Peak Influence 168 | . 168 53 Initial 53 | . . 53 Average 27 | . 45 15 Influence Increases 235 | . 235 . Destroy 0b10 Robot/C 160 | . 160 . Destroy 0b10 Robot/NC 10 | . 10 . Destroy Leader 34 | . 34 . Destroy Structure 1 | . 1 . Lose Combat Pursuer 30 | . 30 . Influence Decreases 235 | . 97 138 Entered New Map 85 | . . 85 Time Decay 150 | . 97 53 Squads Dispatched 2 | . 1 1 Investigation 1 | . . 1 Extermination . | . . . Reinforcement 1 | . 1 . Assault . | . . . Garrison . | . . . Intercept . | . . . Searches Triggered . | . . . Construction Impeded . | . . . Haulers Reinforced . | . . . Active Scanning Responses . | . . . Cargo Convoy Interrupts . | . . . Stealth | -11 -10 -10 --------- Run | Yrd Mat Min Distress Signals . | . . . Communications Jammed . | . . . Distress Signals . | . . . Times Spotted 21 | . 16 5 Peak Tracking Total 5 | . 5 3 Tactical Retreats 1 | . 1 . Traps | -11 -10 -10 ------- Run | Yrd Mat Min Traps Triggered . | . . . Indirectly . | . . . Trap Hack Attempts . | . . . Triggered . | . . . Disarmed . | . . . Reprogrammed . | . . . Reused . | . . . Traps Extracted . | . . . Installed . | . . . Triggered . | . . . Machines | -11 -10 -10 ---------- Run | Yrd Mat Min Machines Disabled . | . . . Max in Single Turn . | . . . Machines Repaired . | . . . Machines Dismantled . | . . . Machines Sabotaged . | . . . Overloaded Fab Kills . | . . . Hacking | -11 -10 -10 --------- Run | Yrd Mat Min Machines Accessed 2 | . 1 1 Terminals 1 | . 1 . Fabricators . | . . . Repair Stations . | . . . Recycling Units . | . . . Scanalyzers . | . . . Garrison Access . | . . . Total Hacks 3 | . 2 1 Successful 2 | . 1 1 Failed 1 | . 1 . Catastrophic 1 | . 1 . Database Lockouts . | . . . Manual . | . . . Terminals 2 | . 2 . Fabricators . | . . . Repair Stations . | . . . Recycling Units . | . . . Scanalyzers . | . . . Garrison Access . | . . . Terminal Hacks 2 | . 1 1 Open Door 1 | . . 1 Alert Level 1 | . 1 . Fabricator Hacks . | . . . Repair Station Hacks . | . . . Recycling Unit Hacks . | . . . Scanalyzer . | . . . Garrison Access Hacks . | . . . Unauthorized Hacks . | . . . Terminals . | . . . Fabricators . | . . . Repair Stations . | . . . Recycling Units . | . . . Scanalyzers . | . . . Garrison Access . | . . . Data Cores Recovered . | . . . Used . | . . . Hacking Detections 1 | . 1 . Full Trace Events . | . . . Feedback Events . | . . . Feedback Blocked . | . . . Robot Schematics Acquired . | . . . Robots Built . | . . . Authchips . | . . . Time . | . . . Total Robot Build Rating . | . . . Part Schematics Acquired . | . . . Parts Built . | . . . Authchips . | . . . Time . | . . . Total Part Build Rating . | . . . Part Studies Acquired . | . . . Parts Repaired . | . . . Time . | . . . Parts Recycled . | . . . Recycled Matter . | . . . Retrieved Matter . | . . . Retrieved Components . | . . . Parts Scanalyzed . | . . . Part Schematics Acquired . | . . . Parts Damaged . | . . . Bothacking | -11 -10 -10 ------------ Run | Yrd Mat Min Used RIF Installer . | . . . Robots Hacked . | . . . Non-combat . | . . . Combat . | . . . Robot Hacks Applied . | . . . Relay Couplers Released . | . . . Fabnet Peak Effective % . | . . . Robots Rewired . | . . . Allies Hacked . | . . . Hacks Repelled . | . . . Allies | -11 -10 -10 -------- Run | Yrd Mat Min Total Allies . | . . . Largest Group . | . . . Highest-Rated Group . | . . . Highest-Rated Ally . | . . . Total Orders . | . . . Ally Attacks . | . . . Total Damage . | . . . Kills . | . . . Allies Corrupted . | . . . Allies Melted . | . . . Intel | -11 -10 -10 ------- Run | Yrd Mat Min Active Infowar (turns) 327 | . 111 216 Optics 327 | . 111 216 Robot Analysis Total . | . . . Derelict Logs Recovered 1 | . . 1 Drone Launches . | . . . Drone Recoveries . | . . . Exploration | -11 -10 -10 ------------- Run | Yrd Mat Min Turns Passed 491 | 53 222 216 Spaces Moved 344 | 46 120 178 Core 7 | 7 . . Treads . | . . . Legs . | . . . Wheels 278 | 39 120 119 Hover . | . . . Flight 59 | . . 59 Fastest Speed 50 | 50 100 100 Average Speed 102 | 92 100 106 Slowest Speed 280 | 100 100 280 Overloaded Moves . | . . . Propulsion Burnouts . | . . . Robots Hopped . | . . . Potential Cave-ins . | . . . Cave-ins Triggered . | . . . Exploration Rate (%) 28 | 3 29 54 Regions Visited 2 Branch Regions 1 Pre-discovered Areas 1 | . . 1 Known Exits Taken . | . . . Unknown Exits Taken 2 | 1 1 . Scrap Searched . | . . . Spaces Dug . | . . . Terrain Destroyed . | . . . Melee . | . . . Projectile . | . . . AOE . | . . . Terrain Rammed . | . . . Walls Destroyed . | . . . Machines Disabled . | . . . Actions | -11 -10 -10 --------- Run | Yrd Mat Min Total 427 | 54 177 196 Wait 25 | . 16 9 Move 342 | 45 119 178 Hop . | . . . Pick Up 14 | 3 10 1 Fast Attach 4 | 4 . . Attach 5 | 2 1 2 Detach . | . . . Swap 1 | . 1 . Drop 4 | . 3 1 Fire 32 | . 27 5 Melee . | . . . Ram . | . . . Kick . | . . . Crush . | . . . Escape Stasis . | . . . Rewire . | . . . Trap . | . . . Miscellaneous . | . . . Route ------- -11/Scrapyard -10/Materials -10/Mines (discovered 1 exit: [*Mat]) History --------- Turn | Location | Event 6 | -11/Scrapyard | Discovered new exit (range 16) 54 | -11/Scrapyard | Entered Materials 270 | -10/Materials | Discovered new exit (range 7) 276 | -10/Materials | Entered Mines 283 | -10/Mines | Received a Rocket Launcher from a helpful Derelict 293 | -10/Mines | Met a Derelict bent on vengeance 297 | -10/Mines | Discovered new exit (range 5) 306 | -10/Mines | Build established: Mutant 326 | -10/Mines | Learned location of Storage (-8) 340 | -10/Mines | Met a Derelict shopkeep closing up shop 392 | -10/Mines | Assembled infested the area 490 | -10/Mines | Core integrity fell below 50% 492 | -10/Mines | Core integrity fell below 20% 492 | -10/Mines | Destroyed by D-53 Grenadier with Mini Grenade Launcher Last Messages --------------- 00407_ System corrupted by crushing effect (+5). 00407_ Knocked back. 00409_ as-90165 powers down. 00409_ as-87015 powers down. 00415_ System corrupted: FCS attempts to trigger Lgt. Assault Rifle. 00415_ System corrupted: Lgt. Assault Rifle misfires. 00431_ K-01 Serf collects debris. 00442_ System corrupted: FCS attempts to trigger Med. Laser. 00442_ System corrupted: Med. Laser misfires. 00461_ System corrupted: FCS attempts to trigger Med. Laser. 00461_ System corrupted: Med. Laser misfires. 00479_ Flight Unit destroyed. 00483_ System corrupted: Heat flow error (+104). 00484_ Ion Engine destroyed. 00486_ Flight Unit destroyed. 00490_ System corrupted: Lgt. Assault Rifle jammed. 00490_ D-53 Grenadier suffers critical hit (Burn). 00491_ Lgt. Assault Rifle destroyed. 00491_ Med. Laser destroyed. 00492_ U-05 Engineer lays Concrete. Map ----- +----------------------------------------------------+ | # #??????????# #????????# #?? | | # ## #?????????# #???????## #?? | | # ## #### #?????????# ######### ### | | # ##???? #?????????# | | # ## #?????? #??????????########### | | # #?# ##???????##????????????????????# ##### | | # #?# #??????????????????????????????## ##???? | | # #?# #???????????????????????????????#####????? | | # ### #????????????????????????????????????????? | | ## #????????????????????????????????????????? | | ## #????????????????######??????????????????? | | ## #???????????????##""""##?????????????????? | | #### #???????????????#"![!]"#?????????????????# | | #### ##??????????????#"= "#????????????????## | | ## ##?????????????## !##?????????######## | | #?????????????### ###?????????# | | ##????????##### X ########??# | | ##???????# #??# ####### | | ## ##??##??# #### ####### | | ### #### ## | | #?# u ############ | | ##?## #??????????? | | ####???## #### #??????????? | | ????????# #??# d #??????????? | | ????????# #??# d #??????????? | | ????????## ##???### @ #??????????? | | ?????????####??????## #??????????? | | ????????????????????# #??????????? | | ????????????????????# #??????????? | | ????????????????????# #??????????? | | ????????????????????### ## ############??????????? | | ???????????????????????#??##?????????????????????? | | | | | | | | | | | | | | | | | | | | | | | | | | | | | | | | | | | | | +----------------------------------------------------+ Best States ------------- Heat Dissipation 25 Energy Generation 10 Energy Capacity 250 Matter Stores 300 Matter Capacity 300 Sight Range 18 Terrain Scan Density 10 Evasion (%) 40 Item Schematics ----------------- None Robot Schematics ------------------ None Fabricated ------------ Nothing Repaired ---------- Nothing Studied --------- None Alien Tech Used ----------------- None Achievements -------------- None Challenges ------------ None Game ------ Seed FireGravitonImmobilizer Manual? 0 Play Time 00:11:54 Cumulative 85.8 hours Start 2025.12.17 @ 01:26:29 End 2025.12.17 @ 01:37:53 Sessions 1 Manual Loads 0 Difficulty Rogue Special Mode None Game No. 43 Rogue 43 Adventurer 0 Explorer 0 Win Type - Total 0 Types 0/0/0/0/0/0/0/0/0/0 Lore% 23 Gallery% 37 Achievement% 26 Wizard Run 0 Options --------- Layout 0 ASCII 0 Keyboard 0 Movement Mouse Keybinds 0 Fullscreen 2 Font 18/SmallcapsGlow Map View 76x50 Zoom Use 87% Tactical HUD 1 Map Filters NONE Filters NONE Steam 1 RUN: 4986f299-a4d9-4bf0-88e3-2c65a0269744